[Event "WEM-KT 2018"]
[Site "Illertissen"]
[Date "2018.08.27"]
[Round "3"]
[White "Klaiss, Thomas"]
[Black "Wolf, Rainer"]
[Result "1/2-1/2"]
[ECO "A01"]
[WhiteElo "2021"]
[BlackElo "2044"]
[Annotator "NA"]
[PlyCount "128"]
[EventDate "2018.08.25"]
[EventType "tourn"]
[EventCountry "GER"]
[SourceTitle "playchess.com"]
[Source "ChessBase"]
[SourceQuality "1"]
[TimeControl "40/6000+30:3000+30"]

1. b3 {[%emt 0:11:08]} d5 {[%emt 0:10:33]} 2. Bb2 {[%emt 0:00:15]} Nc6 {[%emt 0:00:25]} 3. e3 {[%emt 0:02:37]} Nf6 {[%emt 0:02:53]} 4. Bb5 {[%emt 0:04:24]} Bd7 {[%emt 0:00:54]} 5. Nf3 {[%emt 0:00:10]} b6 {[%emt 0:07:17]} 6. O-O {[%emt 0:04:57]} a6 {[%emt 0:00:21]} 7. Be2 {[%emt 0:00:20]} e6 {[%emt 0:01:11]} 8. c4 {[%emt 0:00:14]} Bd6 {[%emt 0:00:44]} 9. d4 {[%emt 0:03:23]} O-O {[%emt 0:20:37]} 10. Nbd2 {[%emt 0:04:16]} Re8 {[%emt 0:12:42]} 11. Ne5 {[%emt 0:01:51]} Bf8 {[%emt 0:04:19]} 12. Bf3 {[%emt 0:01:13]} Ne7 {[%emt 0:15:27]} 13. Rc1 {[%emt 0:13:30]} c6 {[%emt 0:01:09]} 14. e4 {[%emt 0:01:47]} Rc8 {[%emt 0:03:55]} 15. Nd3 {[%emt 0:01:07]} dxe4 {[%emt 0:03:38]} 16. Nxe4 {[%emt 0:00:12]} Nxe4 {[%emt 0:00:43]} 17. Bxe4 {[%emt 0:00:12]} Ng6 {[%emt 0:01:34]} 18. Ne5 {[%emt 0:03:48]} Rc7 {[%emt 0:05:33]} 19. Qf3 {[%emt 0:11:57]} f5 {[%emt 0:01:29]} 20. Bb1 {[%emt 0:01:44]} Nxe5 {[%emt 0:02:55]} 21. dxe5 {[%emt 0:00:28]} c5 {[%emt 0:00:34]} 22. Rfd1 {[%emt 0:01:46]} Qc8 {[%emt 0:00:56]} 23. Qh3 {[%emt 0:02:14]} Bc6 {[%emt 0:00:31]} 24. Rd2 {[%emt 0:04:21]} Rd7 {[%emt 0:06:23]} 25. Rcd1 {[%emt 0:01:02]} Red8 {[%emt 0:01:46]} 26. Qe3 {[%emt 0:01:18]} Qb7 {[%emt 0:01:50]} 27. f3 {[%emt 0:01:46]} g6 {[%emt 0:00:14]} 28. Kf2 {[%emt 0:01:41]} Be7 {[%emt 0:00:10]} 29. Qh6 {[%emt 0:02:15]} Bf8 {[%emt 0:01:02]} 30. Qg5 {[%emt 0:00:45]} Be7 {[%emt 0:00:33]} 31. Qh6 {[%emt 0:01:07]} Bh4+ {[%emt 0:00:49]} 32. Ke2 {[%emt 0:01:29]} Rxd2+ {[%emt 0:00:04]} 33. Rxd2 {[%emt 0:00:27]} Qe7 {[%emt 0:00:22]} 34. Rxd8+ {[%emt 0:01:20]} Qxd8 {[%emt 0:00:04]} 35. Qd2 {[%emt 0:00:21]} Qc7 {[%emt 0:01:30]} 36. Qd6 {[%emt 0:03:43]} Qxd6 {[%emt 0:00:15]} 37. exd6 {[%emt 0:00:08]} Kf7 {[%emt 0:00:30]} 38. g3 {[%emt 0:04:43]} Bf6 {[%emt 0:00:12]} 39. Bc1 {[%emt 0:01:31]} e5 {[%emt 0:00:26]} 40. Bh6 {[%emt 0:03:05]} Bg7 {[%emt 0:00:46]} 41. Bg5 {[%emt 0:54:24]} Bf8 {[%emt 0:51:37]} 42. Bd8 {[%emt 0:00:58]} b5 {[%emt 0:00:15]} 43. g4 {[%emt 0:01:39]} fxg4 {[%emt 0:00:13]} 44. fxg4 {[%emt 0:00:47]} Bxd6 {[%emt 0:00:22]} 45. Ke3 {[%emt 0:00:41]} Bd7 {[%emt 0:00:00]} 46. h3 {[%emt 0:00:00]} bxc4 {[%emt 0:00:00]} 47. bxc4 {[%emt 0:00:00]} Be6 {[%emt 0:00:00]} 48. Bd3 {[%emt 0:00:00]} h5 {[%emt 0:00:00]} 49. Be2 {[%emt 0:00:00]} hxg4 {[%emt 0:00:00]} 50. hxg4 {[%emt 0:00:00]} Bd7 {[%emt 0:00:00]} 51. Bf3 {[%emt 0:00:00]} Be7 {[%emt 0:00:00]} 52. Bd5+ $11 {[%emt 0:00:00]} Ke8 {[%emt 0:00:00]} 53. Bc7 {[%emt 0:00:00]} Bxg4 {[%emt 0:00:00]} 54. Bxe5 {[%emt 0:00:00]} Bg5+ {[%emt 0:00:00]} 55. Kf2 {[%emt 0:00:00]} Kd7 {[%emt 0:00:00]} 56. Bb7 {[%emt 0:00:00]} a5 {[%emt 0:00:00]} 57. Be4 {[%emt 0:00:00]} Bh4+ {[%emt 0:00:00]} 58. Ke3 {[%emt 0:00:00]} g5 {[%emt 0:00:00]} 59. a4 {[%emt 0:00:50]} Bd1 {[%emt 0:01:40]} 60. Bc3 {[%emt 0:00:46]} g4 {[%emt 0:04:12]} 61. Bxa5 {[%emt 0:00:33]} g3 {[%emt 0:00:27]} 62. Kf4 {[%emt 0:03:32]} Be2 {[%emt 0:01:28]} 63. Bg2 {[%emt 0:00:46]} Bxc4 {[%emt 0:00:45]} 64. Bb6 {[%emt 0:00:33]} Bd8 {[%emt 0:01:26]} 1/2-1/2

[Event "WEM-KT 2018"]
[Site "Illertissen"]
[Date "2018.08.27"]
[Round "3"]
[White "Kohde, Janis"]
[Black "Handel, Oliver"]
[Result "1-0"]
[ECO "D37"]
[WhiteElo "1803"]
[BlackElo "1839"]
[Annotator "NA"]
[PlyCount "85"]
[EventDate "2018.08.25"]
[EventType "tourn"]
[EventCountry "GER"]
[SourceTitle "playchess.com"]
[Source "ChessBase"]
[SourceQuality "1"]
[TimeControl "40/6000+30:3000+30"]

1. d4 {[%emt 0:09:34]} Nf6 {[%emt 0:09:37]} 2. c4 {[%emt 0:00:06]} e6 {[%emt 0:00:05]} 3. Nf3 {[%emt 0:00:36]} d5 {[%emt 0:00:32]} 4. Nc3 {[%emt 0:00:11]} Be7 {[%emt 0:00:59]} 5. Bf4 {[%emt 0:00:11]} c6 {[%emt 0:00:53]} 6. e3 {[%emt 0:02:05] LiveBook: 209 Games} Nbd7 {[%emt 0:03:50]} 7. Be2 $11 {[%emt 0:06:04]} dxc4 {[%emt 0:12:26]} 8. Bxc4 {[%emt 0:00:04]} Nd5 {[%emt 0:00:12]} 9. Bg3 {[%emt 0:03:55]} N7f6 {[%emt 0:06:59]} 10. O-O {[%emt 0:00:55]} O-O {[%emt 0:00:19]} 11. Ne5 {[%emt 0:03:59]} a6 {[%emt 0:03:01]} 12. Rc1 {[%emt 0:03:39]} Nxc3 {[%emt 0:08:31]} 13. bxc3 {[%emt 0:02:22]} c5 {[%emt 0:04:46]} 14. f3 {[%emt 0:07:56]} Nd5 {[%emt 0:06:53]} 15. Bf2 {[%emt 0:17:06]} f6 {[%emt 0:07:42]} 16. Bxd5 {[%emt 0:02:35]} exd5 {[%emt 0:05:25]} 17. Nd3 {[%emt 0:01:03]} c4 {[%emt 0:01:54]} 18. Nf4 {[%emt 0:01:13]} g5 {[%emt 0:02:19]} 19. Nh5 {[%emt 0:06:41]} Bf5 {[%emt 0:01:12]} 20. Ng3 {[%emt 0:03:22]} Bd3 {[%emt 0:00:32]} 21. Re1 {[%emt 0:00:26]} Ba3 {[%emt 0:00:25]} 22. Rb1 {[%emt 0:01:54]} b5 {[%emt 0:02:45]} 23. e4 {[%emt 0:00:47]} dxe4 {[%emt 0:01:46]} 24. fxe4 {[%emt 0:00:44]} Bxb1 {[%emt 0:04:24]} 25. Qxb1 {[%emt 0:00:23]} Rb8 {[%emt 0:00:52]} 26. Qd1 {[%emt 0:05:06]} a5 {[%emt 0:01:47]} 27. Nf5 {[%emt 0:03:05]} Qd7 {[%emt 0:01:10]} 28. h4 {[%emt 0:06:13]} b4 {[%emt 0:02:57]} 29. hxg5 {[%emt 0:00:55]} fxg5 {[%emt 0:00:26]} 30. Qg4 {[%emt 0:00:37]} Rxf5 {[%emt 0:00:24]} 31. exf5 {[%emt 0:00:31]} h6 {[%emt 0:03:31]} 32. Re6 {[%emt 0:16:10]} b3 {[%emt 0:00:30]} 33. axb3 {[%emt 0:00:43]} cxb3 {[%emt 0:00:48]} 34. Rg6+ {[%emt 0:01:49]} Kh7 {[%emt 0:01:16]} 35. Qh5 {[%emt 0:03:49]} Bf8 {[%emt 0:00:21]} 36. Rxg5 {[%emt 0:00:14]} Rb6 {[%emt 0:03:30]} 37. Rg6 {[%emt 0:00:46]} Rxg6 {[%emt 0:02:38]} 38. Qxg6+ {[%emt 0:00:02]} Kh8 {[%emt 0:00:23]} 39. Bg3 {[%emt 0:01:03]} Qh7 {[%emt 0:05:38]} 40. Be5+ {[%emt 0:00:19]} Bg7 {[%emt 0:00:20]} 41. Qe8+ {[%emt 0:22:19]} Qg8 {[%emt 0:20:24]} 42. Bxg7+ {[%emt 0:03:27]} Kxg7 {[%emt 0:01:39]} 43. f6+ {[%emt 0:00:11]} 1-0

[Event "WEM-KT 2018"]
[Site "Illertissen"]
[Date "2018.08.28"]
[Round "4"]
[White "Wolf, Rainer"]
[Black "Kohde, Janis"]
[Result "1-0"]
[ECO "A13"]
[WhiteElo "2044"]
[BlackElo "1803"]
[Annotator "NA RC"]
[PlyCount "45"]
[EventDate "2018.08.25"]
[EventType "tourn"]
[EventCountry "GER"]
[SourceTitle "playchess.com"]
[Source "ChessBase"]
[SourceQuality "1"]
[TimeControl "40/6000+30:3000+30"]

1. Nf3 {[%emt 0:09:36]} Nf6 {[%emt 0:09:38]} 2. e3 {[%emt 0:00:19]} d5 {[%emt 0:00:43]} 3. Be2 {[%emt 0:00:23]} e6 {[%emt 0:01:11]} 4. O-O {[%emt 0:00:46]} Be7 {[%emt 0:01:32]} 5. b3 {[%emt 0:00:27]} O-O {[%emt 0:00:20]} 6. Bb2 {[%emt 0:00:25]} Nbd7 {[%emt 0:01:00]} 7. c4 {[%emt 0:03:05]} c6 {[%emt 0:00:32] LiveBook: 16 Games} 8. d4 {[%emt 0:00:46] A13: Reti-Eröffnung} (8. Qc2 Bd6 9. Ba3 {½-½ (9) Hernando Pertierra,J (2388)-Del Rio de Angelis,S (2515) Madrid 2010}) 8... b6 {[%emt 0:02:32]} 9. Nfd2 $146 {[%emt 0:02:24]} ({Vorgänger:} 9. Nc3 Bb7 10. Rc1 Rc8 11. Qd3 c5 12. cxd5 Nxd5 13. Nxd5 Bxd5 14. Rfd1 cxd4 15. Qxd4 Bf6 16. Qd2 Bxb2 17. Qxb2 Qe7 18. Nd4 h6 19. Bf3 Bxf3 {½-½ (19) Sosovicka,J (2215)-Borosova,Z (2263) Slovakia 2015}) 9... Bb7 {[%emt 0:02:15]} 10. Nc3 {[%emt 0:01:19]} c5 {[%emt 0:05:25]} 11. Bf3 {[%emt 0:04:10]} cxd4 {[%emt 0:05:10]} 12. exd4 {[%emt 0:00:22]} Bb4 {[%emt 0:07:55]} 13. a3 {[%emt 0:02:54]} Bxc3 {[%emt 0:02:52]} 14. Bxc3 {[%emt 0:00:07]} Qc8 {[%emt 0:10:28]} 15. Rc1 {[%emt 0:01:40]} dxc4 {[%emt 0:04:00]} 16. Bb4 {[%emt 0:05:28]} Bxf3 {[%emt 0:04:10]} 17. Qxf3 {[%emt 0:00:22]} Rd8 {[%emt 0:04:13]} 18. Nxc4 {[%emt 0:04:05]} Qa6 {[%emt 0:03:40]} 19. Be7 {[%emt 0:13:11]} Rdb8 {[%emt 0:00:56]} 20. Nd6 {[%emt 0:05:16]} e5 {[%emt 0:19:23]} 21. Bxf6 {[%emt 0:03:03]} Nxf6 {[%emt 0:00:23]} (21... e4 $142 22. Nxe4 Nxf6 23. Nxf6+ gxf6) 22. dxe5 {[%emt 0:00:09]} Qxa3 {[%emt 0:02:13]} 23. Nc4 $18 {[%emt 0:01:01]} (23. Rfd1 $142) 1-0

[Event "WEM-KT 2018"]
[Site "Illertissen"]
[Date "2018.08.28"]
[Round "4"]
[White "Bossinger, Patrick"]
[Black "Guenther, Stefan"]
[Result "1-0"]
[ECO "C42"]
[WhiteElo "2039"]
[BlackElo "1907"]
[Annotator "NA RC"]
[PlyCount "134"]
[EventDate "2018.08.25"]
[EventType "tourn"]
[EventCountry "GER"]
[SourceTitle "playchess.com"]
[Source "ChessBase"]
[SourceQuality "1"]
[TimeControl "40/6000+30:3000+30"]

1. e4 {[%emt 0:09:36]} e5 {[%emt 0:09:38]} 2. Nf3 {[%emt 0:00:10]} Nf6 {[%emt 0:00:04]} 3. Nxe5 {[%emt 0:00:06]} d6 {[%emt 0:00:05]} 4. Nf3 {[%emt 0:00:08]} Nxe4 {[%emt 0:00:05]} 5. d4 {[%emt 0:00:07]} d5 {[%emt 0:00:04]} 6. Bd3 {[%emt 0:00:11]} Nc6 {[%emt 0:00:05]} 7. O-O {[%emt 0:00:46]} Be7 {[%emt 0:00:04]} 8. c4 {[%emt 0:03:54]} Nb4 {[%emt 0:00:14]} 9. cxd5 {[%emt 0:00:50]} Nxd3 {[%emt 0:01:01]} 10. Qxd3 {[%emt 0:00:10]} Qxd5 {[%emt 0:00:08]} 11. Nc3 {[%emt 0:01:02]} Nxc3 {[%emt 0:00:32]} 12. bxc3 {[%emt 0:00:50]} O-O {[%emt 0:06:49] C42: Petroff Defence: 3 Nxe5 and unusual White 3rd moves} 13. Ne5 {[%emt 0:12:28]} f6 $146 {[%emt 0:17:46]} ({Predecessor:} 13... c5 14. Ba3 Re8 15. Rfd1 b6 16. c4 Qxd4 17. Qxd4 cxd4 {0-1 (17) Munoz Duran,J (2200)-Corujedo Hernandez,R (2279) ICCF email 2008}) 14. c4 {[%emt 0:02:18]} Qa5 {[%emt 0:05:49]} 15. Nf3 {[%emt 0:06:07]} Bf5 {[%emt 0:12:03]} 16. Qb3 {[%emt 0:02:01]} Qb4 {[%emt 0:02:13]} 17. Bd2 {[%emt 0:04:29]} Qxb3 {[%emt 0:00:29]} 18. axb3 {[%emt 0:00:07]} Rfe8 {[%emt 0:07:17]} 19. Rfe1 {[%emt 0:06:55]} a6 {[%emt 0:05:48]} 20. d5 {[%emt 0:22:37]} Bd6 {[%emt 0:05:12]} 21. Nd4 {[%emt 0:04:36]} Bd7 {[%emt 0:00:03]} 22. Rad1 {[%emt 0:01:18]} Rxe1+ {[%emt 0:01:05]} 23. Rxe1 {[%emt 0:00:16]} Kf7 {[%emt 0:00:35]} 24. b4 {[%emt 0:01:35]} b6 {[%emt 0:03:34]} 25. Rc1 {[%emt 0:05:10]} Be5 {[%emt 0:09:47]} 26. Nf3 $1 {[%emt 0:01:46]} c6 {[%emt 0:06:44]} 27. Be3 {[%emt 0:07:17]} Rb8 {[%emt 0:04:43]} 28. Nxe5+ {[%emt 0:03:08]} fxe5 {[%emt 0:00:01]} 29. d6 {[%emt 0:00:29]} Ke6 {[%emt 0:01:40]} 30. c5 {[%emt 0:01:24]} bxc5 {[%emt 0:00:27]} 31. bxc5 {[%emt 0:00:30]} a5 {[%emt 0:00:37]} 32. Kf1 {[%emt 0:01:32]} a4 {[%emt 0:01:00]} 33. Ra1 {[%emt 0:03:31]} Ra8 {[%emt 0:01:20]} 34. Ke2 {[%emt 0:00:18]} Be8 {[%emt 0:00:16]} 35. Kd3 {[%emt 0:01:02]} Kd7 {[%emt 0:02:46]} 36. Kc3 {[%emt 0:03:25]} a3 {[%emt 0:00:49]} 37. Rc1 $1 {[%emt 0:02:06]} Rb8 {[%emt 0:01:13]} 38. Ra1 {[%emt 0:00:28]} Ra8 {[%emt 0:00:12]} 39. Rc1 {[%emt 0:00:20]} a2 {[%emt 0:00:24]} 40. Kb2 {[%emt 0:02:41]} Bf7 {[%emt 0:00:34]} 41. Ka1 {[%emt 0:27:15]} Ra3 {[%emt 0:28:50]} 42. Rc2 {[%emt 0:06:35]} Rd3 {[%emt 0:04:02]} 43. Rd2 {[%emt 0:00:26]} Rc3 {[%emt 0:01:45]} 44. Rb2 {[%emt 0:03:40]} Bb3 {[%emt 0:06:17]} 45. Re2 {[%emt 0:03:39]} h6 {[%emt 0:03:17]} 46. Rb2 {[%emt 0:01:42]} Rd3 {[%emt 0:01:30]} 47. Rd2 $1 {[%emt 0:00:16]} Rc3 {[%emt 0:00:50]} 48. Rb2 {[%emt 0:00:18]} Kc8 {[%emt 0:00:21]} 49. Re2 {[%emt 0:01:14]} Bc4 {[%emt 0:02:03]} 50. Re1 {[%emt 0:02:37]} Bd5 {[%emt 0:02:49]} 51. g4 {[%emt 0:04:52]} (51. Rc1 $11 Rd3 52. Rc2) 51... Rc2 {[%emt 0:02:55]} 52. h4 {[%emt 0:00:25]} g5 {[%emt 0:02:23]} 53. hxg5 {[%emt 0:00:54]} hxg5 {[%emt 0:00:04]} 54. Bxg5 {[%emt 0:01:18]} Rxf2 {[%emt 0:00:07]} 55. Be3 {[%emt 0:00:45]} Rf3 {[%emt 0:01:04]} 56. g5 {[%emt 0:00:52]} Rg3 {[%emt 0:00:31]} 57. Bd2 {[%emt 0:01:13]} e4 {[%emt 0:01:06]} 58. Be3 {[%emt 0:02:07]} Kd7 {[%emt 0:00:29]} 59. Bf4 {[%emt 0:00:51]} Rf3 {[%emt 0:01:39]} 60. Be5 {[%emt 0:00:03]} e3 {[%emt 0:00:29]} 61. g6 {[%emt 0:00:54] [#]} e2 $1 {[%emt 0:00:55]} 62. Kb2 {[%emt 0:00:11]} Rf1 {[%emt 0:01:47]} (62... Be6 $15 63. g7 Rf1) 63. Bc3 {[%emt 0:00:01]} Rxe1 64. Bxe1 {[%emt 0:00:01]} Ke8 {[%emt 0:01:05]} 65. g7 {[%emt 0:00:33]} Kf7 {[%emt 0:00:02]} 66. g8=Q+ {[%emt 0:00:32]} Kxg8 {[%emt 0:00:03]} 67. d7 {[%emt 0:00:09]} Kf7 {[%emt 0:01:17]} 1-0

[Event "WEM-KT 2018"]
[Site "Illertissen"]
[Date "2018.08.28"]
[Round "4"]
[White "Hermann, Tobias"]
[Black "Handel, Oliver"]
[Result "1-0"]
[ECO "A13"]
[WhiteElo "2002"]
[BlackElo "1839"]
[Annotator "NA RC"]
[PlyCount "61"]
[EventDate "2018.08.25"]
[EventType "tourn"]
[EventCountry "GER"]
[SourceTitle "playchess.com"]
[Source "ChessBase"]
[SourceQuality "1"]
[TimeControl "40/6000+30:3000+30"]

1. b3 {[%emt 0:09:37]} d5 {[%emt 0:10:24]} 2. Bb2 {[%emt 0:00:06]} e6 {[%emt 0:01:20]} 3. e3 {[%emt 0:00:14]} Nf6 {[%emt 0:00:19]} 4. Nf3 {[%emt 0:00:22]} c5 {[%emt 0:02:33]} 5. c4 {[%emt 0:00:21]} Nc6 {[%emt 0:04:34]} 6. cxd5 {[%emt 0:02:26]} exd5 {[%emt 0:01:24]} 7. Bb5 {[%emt 0:01:01] LiveBook: 179 Games} Bd7 {[%emt 0:03:09]} 8. O-O {[%emt 0:03:44] A13: English Opening: 1...e6} a6 {[%emt 0:03:57]} (8... Be7 9. d4 cxd4 10. Bxc6 bxc6 11. exd4 Bf5 12. Ne5 Rc8 13. Nc3 O-O 14. Na4 Nd7 15. Nd3 Bd6 {½-½ (34) Lopez Martinez,J (2607)-Pavasovic,D (2548) Heraklio 2017}) 9. Bxc6 {[%emt 0:02:42]} Bxc6 {[%emt 0:00:38]} 10. d4 {[%emt 0:01:12]} b6 {[%emt 0:08:19]} 11. Nc3 {[%emt 0:10:11]} Be7 $146 {[%emt 0:03:02]} ({Predecessor:} 11... Bd6 $11 12. Rc1 Rc8 13. Qe2 Bb7 14. Rfd1 O-O 15. dxc5 bxc5 {½-½ (29) Suba,M (2503)-Garcia Rodriguez,V (2015) Albacete 2004}) 12. Rc1 {[%emt 0:05:15]} O-O {[%emt 0:05:34]} 13. dxc5 {[%emt 0:13:40]} bxc5 {[%emt 0:00:11]} 14. Ne5 {[%emt 0:00:10]} Bb7 {[%emt 0:09:20]} 15. Na4 {[%emt 0:04:02]} Rc8 {[%emt 0:00:20]} 16. Nd3 {[%emt 0:06:36]} c4 {[%emt 0:10:56]} 17. bxc4 {[%emt 0:03:30]} dxc4 {[%emt 0:03:24]} 18. Ne5 {[%emt 0:14:41]} Bd5 {[%emt 0:01:10]} 19. Bd4 {[%emt 0:01:51]} Ba3 {[%emt 0:06:39]} 20. Rc2 {[%emt 0:07:54]} Qa5 {[%emt 0:04:18]} 21. Nb6 {[%emt 0:01:48]} c3 {[%emt 0:06:16]} 22. Nxc8 {[%emt 0:12:57]} Rxc8 {[%emt 0:00:09]} 23. Ng4 {[%emt 0:01:46]} Ne8 {[%emt 0:06:37]} 24. Rxc3 {[%emt 0:02:56]} Rxc3 {[%emt 0:07:44]} 25. Bxc3 {[%emt 0:00:01]} Qc5 {[%emt 0:00:19]} 26. Qd4 {[%emt 0:01:53]} Bxa2 $18 {[%emt 0:00:55]} 27. Ra1 {[%emt 0:00:52]} Be6 {[%emt 0:00:45]} 28. Ne5 {[%emt 0:00:47]} f6 {[%emt 0:06:01]} 29. Nd3 {[%emt 0:00:33]} Qxd4 {[%emt 0:00:34]} 30. Bxd4 {[%emt 0:00:02]} Bc4 {[%emt 0:00:19]} 31. Rxa3 {[%emt 0:00:03]} 1-0

[Event "WEM-KT 2018"]
[Site "Illertissen"]
[Date "2018.08.28"]
[Round "4"]
[White "Jooss, Achim"]
[Black "Schelberg, Martin"]
[Result "1/2-1/2"]
[ECO "E61"]
[WhiteElo "1749"]
[BlackElo "1727"]
[Annotator "NA RC"]
[PlyCount "22"]
[EventDate "2018.08.25"]
[EventType "tourn"]
[EventCountry "GER"]
[SourceTitle "playchess.com"]
[Source "ChessBase"]
[SourceQuality "1"]
[TimeControl "40/6000+30:3000+30"]

1. d4 {[%emt 0:09:32]} Nf6 {[%emt 0:09:50]} 2. Nf3 {[%emt 0:00:19]} d6 {[%emt 0:00:46]} 3. e3 {[%emt 0:00:15]} g6 {[%emt 0:01:27]} 4. Bd3 {[%emt 0:00:07]} Bg7 {[%emt 0:00:40]} 5. O-O {[%emt 0:00:14]} O-O {[%emt 0:00:22]} 6. c4 {[%emt 0:01:38]} Nbd7 {[%emt 0:02:04]} 7. Nc3 {[%emt 0:00:35]} e5 {[%emt 0:02:05]} 8. Ne4 {[%emt 0:05:35]} Nxe4 {[%emt 0:05:01]} 9. Bxe4 {[%emt 0:00:05]} f5 {[%emt 0:00:46]} 10. Bd5+ {[%emt 0:00:53]} Kh8 {[%emt 0:01:14]} 11. Qb3 {[%emt 0:09:23]} e4 {[%emt 0:13:47]} 1/2-1/2

[Event "WEM-KT 2018"]
[Site "Illertissen"]
[Date "2018.08.29"]
[Round "5"]
[White "Klaiss, Thomas"]
[Black "Bossinger, Patrick"]
[Result "1/2-1/2"]
[ECO "D04"]
[WhiteElo "2021"]
[BlackElo "2039"]
[Annotator "NA RC"]
[PlyCount "53"]
[EventDate "2018.08.25"]
[EventType "tourn"]
[EventCountry "GER"]
[SourceTitle "playchess.com"]
[Source "ChessBase"]
[SourceQuality "1"]
[TimeControl "40/6000+30:3000+30"]

{[%evp 12,53,17,12,32767,32767,32767,32767,15,25,14,32767,32767,32767,5,32767,32767,32767,32767,32767,25,32767,18,0,16,32767,32767,32767,10,1,69,32767,32767,110,119,33,54,32767,29,32767,32767,10,6,-14]} 1. d4 {[%emt 0:09:38]} Nf6 {[%emt 0:09:43]} 2. Nf3 {[%emt 0:00:25]} g6 {[%emt 0:00:20]} 3. e3 {[%emt 0:03:33]} Bg7 {[%emt 0:02:51]} 4. Bd3 {[%emt 0:00:31]} O-O {[%emt 0:01:14]} 5. O-O {[%emt 0:00:52]} d5 {[%emt 0:01:48]} 6. Nbd2 {[%emt 0:00:24]} Bg4 {[%emt 0:04:33] D04: Colle System} (6... b6 7. Qe2 Bb7 8. c3 Nbd7 9. Ne5 c5 10. f4 Ne4 11. Nxe4 dxe4 12. Ba6 Bxa6 13. Qxa6 Nf6 14. Qb7 e6 15. a4 {0-1 (37) Akbaev,K (2475)-Lagno,K (2542) Khanty-Mansiysk 2013}) 7. h3 {[%emt 0:00:11]} Bxf3 {[%emt 0:00:25]} 8. Nxf3 {[%emt 0:00:16]} c5 {[%emt 0:01:55]} 9. b3 {[%emt 0:03:57]} Nc6 {[%emt 0:02:21]} 10. Bb2 {[%emt 0:00:09]} cxd4 $146 {[%emt 0:00:38]} ({Predecessor:} 10... Nd7 11. c4 dxc4 12. Bxc4 cxd4 13. exd4 Nb6 14. Bb5 {½-½ (24) Sultana,Z (2081)-Grover,S (1957) Dhaka 2004}) 11. exd4 {[%emt 0:01:03]} Rc8 {[%emt 0:00:52]} 12. Re1 {[%emt 0:05:05]} Nb4 {[%emt 0:07:04]} 13. c4 {[%emt 0:05:09]} Nxd3 {[%emt 0:02:40]} 14. Qxd3 {[%emt 0:00:46]} dxc4 {[%emt 0:01:21]} 15. bxc4 {[%emt 0:00:28]} Qc7 {[%emt 0:03:51]} 16. Rac1 {[%emt 0:01:58]} Rfd8 {[%emt 0:01:57]} 17. Qa3 {[%emt 0:00:29]} e6 {[%emt 0:01:46]} 18. d5 {[%emt 0:01:35]} exd5 {[%emt 0:10:43]} 19. cxd5 {[%emt 0:01:12]} Qd7 {[%emt 0:05:55]} 20. Rxc8 {[%emt 0:01:54]} Rxc8 {[%emt 0:02:18]} (20... Qxc8 $11 21. d6 (21. Qxa7 Nxd5 22. Bxg7 Kxg7 $11) 21... Ne8) 21. d6 {[%emt 0:00:56]} Ne8 {[%emt 0:12:39]} 22. Bxg7 {[%emt 0:03:01]} Kxg7 {[%emt 0:01:03]} 23. Rd1 {[%emt 0:11:19]} ({Don't do} 23. Qxa7 Nxd6 24. Qd4+ f6 $14) (23. Qb2+ $16 Kg8 24. Qd4 (24. Ne5 Qxd6 25. Ng4 h5 $14)) 23... f6 {[%emt 0:01:59]} 24. Qxa7 {[%emt 0:05:24]} Nxd6 {[%emt 0:04:50]} 25. Qd4 {[%emt 0:00:17]} Rc6 {[%emt 0:00:59]} 26. Qd5 {[%emt 0:06:48]} Qf7 {[%emt 0:02:39]} 27. Qxf7+ $11 {[%emt 0:02:07]} 1/2-1/2

[Event "WEM-KT 2018"]
[Site "Illertissen"]
[Date "2018.08.29"]
[Round "5"]
[White "Handel, Oliver"]
[Black "Maisch, Julian"]
[Result "0-1"]
[ECO "B06"]
[WhiteElo "1839"]
[BlackElo "2216"]
[Annotator "NA RC"]
[PlyCount "56"]
[EventDate "2018.08.25"]
[EventType "tourn"]
[EventCountry "GER"]
[SourceTitle "playchess.com"]
[Source "ChessBase"]
[SourceQuality "1"]
[TimeControl "40/6000+30:3000+30"]

{[%evp 11,56,93,95,32767,45,32767,32767,32767,58,36,37,45,31,30,32767,38,46,32767,32767,32767,32767,32767,116,32767,113,32767,302,83,93,81,91,50,117,-44,-64,-329,-320,44,-329,-361,-165,-190,-173,-400,-426,-3319,-3092]} 1. e4 {[%emt 0:09:33]} g6 {[%emt 0:09:33]} 2. d4 {[%emt 0:00:10]} Bg7 {[%emt 0:00:04]} 3. Nf3 {[%emt 0:01:21]} a6 {[%emt 0:00:06] B06: Modern Defence} (3... d6 4. Be2 Nf6 5. Nc3 O-O 6. O-O Nc6 7. d5 Nb8 8. h3 c6 9. Be3 b6 10. dxc6 Nxc6 11. Nd4 Bb7 12. Qd2 Rc8 13. Rfe1 Ne5 14. f3 d5 15. exd5 Nxd5 16. Nxd5 Qxd5 17. b3 {0-1 (49) Hou,Y (2658)-Nakamura,H (2777) chess.com INT 2018}) 4. Bd3 {[%emt 0:00:52]} b5 {[%emt 0:00:14]} 5. O-O {[%emt 0:01:18]} Bb7 {[%emt 0:00:06]} 6. c3 {[%emt 0:02:54]} d6 {[%emt 0:01:16]} 7. Qb3 $146 {[%emt 0:00:50]} ({Predecessor:} 7. a4 bxa4 8. Rxa4 Nd7 9. Re1 e6 10. Nbd2 {1-0 (51) Popov,I (2596)-Golubov,S (2481) Moscow 2016}) 7... Nf6 {[%emt 0:04:27]} 8. Re1 {[%emt 0:00:52]} O-O {[%emt 0:00:55]} 9. a4 {[%emt 0:00:08]} c6 {[%emt 0:00:55]} 10. h3 {[%emt 0:02:54]} Nbd7 {[%emt 0:04:37]} 11. Bf4 {[%emt 0:00:24]} e5 {[%emt 0:04:39]} 12. Bh2 {[%emt 0:06:56]} Qc7 {[%emt 0:04:27]} 13. Nbd2 {[%emt 0:01:16]} Rab8 {[%emt 0:05:32]} 14. axb5 {[%emt 0:03:43]} axb5 {[%emt 0:00:09]} 15. Qc2 {[%emt 0:00:09]} Kh8 {[%emt 0:03:23]} 16. b4 {[%emt 0:03:46]} Ng8 {[%emt 0:01:39]} 17. Nb3 {[%emt 0:16:46]} Bc8 {[%emt 0:07:01]} 18. Na5 {[%emt 0:09:45]} Nb6 $2 {[%emt 0:07:32]} (18... Ne7 $16 {might work better.}) 19. Qe2 $2 {[%emt 0:01:50]} (19. dxe5 $18 dxe5 {[#]} 20. Nxe5 $1 {[%mdl 512]} Bxe5 21. Bxe5+ Qxe5 22. Nxc6) 19... Bd7 {[%emt 0:12:41]} 20. Bc2 {[%emt 0:00:57]} Rbe8 {[%emt 0:06:30]} 21. Qd3 {[%emt 0:01:11]} f5 {[%emt 0:10:42]} 22. Nh4 $2 {[%emt 0:03:23] [#]} (22. dxe5 $16 Bxe5 23. Nxe5 dxe5 24. Rad1) 22... Qd8 $1 {[%emt 0:02:12]} 23. Qg3 $2 {[%emt 0:01:51]} (23. Nf3 $15) 23... f4 {[%emt 0:01:01]} ({Not} 23... exd4 24. exf5 Rxe1+ 25. Rxe1 $15) 24. Nxg6+ {[%emt 0:00:37]} hxg6 {[%emt 0:00:06]} 25. Qxg6 {[%emt 0:00:08]} Qf6 {[%emt 0:01:35]} ({Weaker is} 25... exd4 26. e5 $15) (25... Re6 $142 26. Qg4 Rh6) 26. Qh5+ {[%emt 0:02:49]} Qh6 {[%emt 0:00:08]} 27. Qd1 $2 {[%emt 0:00:20] [#]} (27. Qxh6+ Nxh6 28. Red1) 27... f3 $19 {[%emt 0:01:52]} 28. g4 {[%emt 0:00:53]} (28. Qd3 $142) 28... Qxh3 {[%emt 0:00:19]} 0-1